fUSD/lending_fUSD_20251231
["ID","MTS","AMOUNT","RATE_DAILY","PERIOD"]
[400250148,1767219038644,-271.83902,0.0001683,2]
[400250150,1767219038660,-1195.77167,0.0001683,2]
[400250152,1767219038670,-151.0,0.00016837,2]
[400250154,1767219038680,-151.0,0.00016837,2]
[400250156,1767219038690,-200.0,0.00016864,2]
[400250158,1767219038701,-25000.0,0.00016874,3]
[400250160,1767219038711,-271.83902,0.0001688,2]
[400250162,1767219038721,-150.14009797,0.00016881,2]
[400250164,1767219038731,-500.0,0.00016881,2]
[400250166,1767219038741,-241.18288442,0.00016881,2]
[400250169,1767219038752,-407.94824144,0.00016881,2]
[400250170,1767219038762,-2314.0,0.00016882,2]
[400250172,1767219038772,-25000.0,0.00016882,3]
[400250175,1767219038783,-25000.0,0.00016891,3]
[400250177,1767219038793,-6534.2662,0.000169,2]
[400250178,1767219038803,-3811.84061782,0.000169,3]
[400250181,1767219038815,-5122.48611647,0.000169,3]
[400250183,1767219038826,-6632.64964122,0.000169,3]
[400250185,1767219038837,-2724.7365,0.000169,3]
[400250187,1767219038849,-1122.70891671,0.000169,3]
[400250190,1767219038860,-5585.57820778,0.000169,3]
[400250191,1767219038870,-684.006365,0.000169,2]
[400250193,1767219038879,-186.5138847,0.000169,2]
[400250196,1767219038889,-166.66,0.00016903,2]
[400250198,1767219038899,-271.83902,0.0001691,2]
[400250200,1767219038909,-1195.77168,0.0001693,2]
[400250202,1767219038919,-207.41857008,0.00016973,2]
[400250204,1767219038929,-500.0,0.00016973,2]
[400250206,1767219038939,-500.0,0.00016973,2]
[400250208,1767219038949,-500.0,0.00016973,2]
[400250210,1767219038959,-500.0,0.00016973,2]
[400250212,1767219038970,-500.0,0.00016973,2]
[400250214,1767219038980,-500.0,0.00016973,2]
[400250216,1767219038990,-363.73158191,0.00016973,2]
[400250220,1767219039025,-136.26841809,0.00016973,2]
[400250222,1767219039035,-464.73084139,0.00016973,2]
[400250224,1767219039045,-27.32986269,0.00016973,2]
[400250227,1767219039056,-472.67013731,0.00016973,2]
[400250228,1767219039066,-2503.5,0.00016986,2]
[400250231,1767219039076,-151.0,0.00016994,2]
[400250232,1767219039087,-252.62986269,0.00016997,2]
[400250291,1767219040766,-1.7e-07,0.00016997,2]
[400250293,1767219040778,-3761.56668137,0.00016997,2]
[400250295,1767219040789,-2243.95,0.00016997,2]
[400250297,1767219040800,-5863.50612559,0.00016997,2]
[400250300,1767219040816,-15918.08659907,0.00016997,2]
[400250337,1767219045401,-15268.48926332,0.00016997,2]
[400250338,1767219045413,-1599.7566905,0.00016997,2]
[400250339,1767219045433,-89351.42199283,0.00016997,2]
[400250340,1767219046198,-1825.84649464,0.00016997,2]
[400250341,1767219046210,-427.94459904,0.00016997,2]
[400250342,1767219046222,-5521.0,0.00016997,2]
[400250345,1767219046282,-345.7829875,0.00016997,2]
[400250346,1767219046298,-1620.7380464,0.00016997,2]
[400250347,1767219046310,-1001.9863755,0.00016997,2]
[400250349,1767219046322,-159969.35959978,0.00016997,2]
[400250351,1767219046332,-151.0,0.00016997,2]
[400250353,1767219046341,-300.0,0.00016999,2]
[400250355,1767219046350,-300.0,0.00016999,2]
[400250357,1767219046359,-300.0,0.00016999,2]
[400250359,1767219046369,-300.0,0.00016999,2]
[400250361,1767219046378,-34221.77937367,0.00017,2]
[400250365,1767219046405,-358.46845774,0.00017,2]
[400250368,1767219046419,-36857.88125428,0.00017,2]
[400250370,1767219046432,-187532.11431006,0.00017,2]
[400250372,1767219046445,-500.0,0.00017,2]
[400250374,1767219046457,-2365.08758627,0.00017,2]
[400250377,1767219046470,-301.1,0.00017,2]
[400250379,1767219046481,-24275.77324447,0.00017,2]
[400250381,1767219046493,-2486.13672743,0.00017,2]
[400250384,1767219046505,-357.44392793,0.00017,2]
[400250386,1767219046517,-3275.848593,0.00017,2]
[400250388,1767219046530,-4302.89348897,0.00017,2]
[400250390,1767219046541,-616.0,0.00017,2]
[400250393,1767219046553,-950.326242,0.00017,2]
[400250395,1767219046565,-8911.79410613,0.00017,2]
[400250397,1767219046578,-373.96952708,0.00017,2]
[400250401,1767219046602,-1.5480966,0.00017,2]
[400250465,1767219047407,-791.07285415,0.00017,2]
[400250511,1767219049476,169.8906,9.999e-05,2]
[400250512,1767219055407,1600.0,0.00025093,120]
[400250513,1767219055621,2500.0,9.999e-05,2]
[400250514,1767219060876,500.0,0.00043187,120]
[400250515,1767219122974,500.0,9.999e-05,2]
[400250516,1767219153518,9500.01,9.999e-05,2]
[400250517,1767219153552,10000.01,9.999e-05,2]
[400250518,1767219153583,10000.01,9.999e-05,2]
[400250519,1767219153614,10000.01,9.999e-05,2]
[400250520,1767219153644,10000.01,9.999e-05,2]
[400250521,1767219153674,10000.01,9.999e-05,2]
[400250522,1767219153705,10000.01,9.999e-05,2]
[400250523,1767219153734,10000.01,9.999e-05,2]
[400250524,1767219153763,10000.01,9.999e-05,2]
[400250525,1767219153792,10000.01,9.999e-05,2]
[400250526,1767219153824,900499.9,9.999e-05,2]
[400250527,1767219180268,650.37,7.942e-05,2]
[400250528,1767219180489,650.37,8.36e-05,2]
[400250529,1767219180675,650.37,8.778e-05,2]
[400250530,1767219180865,650.37,9.196e-05,2]
[400250531,1767219181075,650.37,9.614e-05,2]
[400250532,1767219181484,650.37,0.00010032,2]
[400250533,1767219181695,650.37,0.0001045,2]
[400250535,1767219226624,627.80767,0.00043179,120]
[400250536,1767219362637,500.0,0.00043179,120]
[400250538,1767219660961,500.0,0.0004317,120]
[400250543,1767219940622,466.0,0.0004317,120]
[400250545,1767219961389,500.0,0.0004317,120]
[400250554,1767220034766,259.24342515,0.000101,2]
[400250560,1767220121049,398.58581944,0.0004317,120]
[400250580,1767220231406,-650.37,0.00010868,2]
[400250582,1767220231416,-239.0,0.00010868,2]
[400250585,1767220231426,-300.0,0.00011277,2]
[400250586,1767220231441,-300.0,0.00011277,2]
[400250587,1767220231451,-151.0,0.00011278,2]
[400250588,1767220231461,-151.0,0.00011278,2]
[400250589,1767220231471,-151.0,0.00011278,2]
[400250590,1767220231482,-151.0,0.00011278,2]
[400250591,1767220231492,-151.0,0.00011278,2]
[400250592,1767220231502,-151.0,0.00011278,2]
[400250593,1767220231512,-53.01172906,0.00011278,2]
[400250594,1767220231525,-97.98827094,0.00011278,2]
[400250595,1767220231535,-151.0,0.00011278,2]
[400250596,1767220231546,-151.0,0.00011278,2]
[400250597,1767220231556,-151.0,0.00011278,2]
[400250598,1767220231567,-226.56704733,0.00011278,2]
[400250599,1767220231577,-1951.81760279,0.00011278,2]
[400250600,1767220231587,-2000.0,0.00011285,2]
[400250601,1767220231599,-650.37,0.00011286,2]
[400250602,1767220231610,-650.37,0.00011704,2]
[400250603,1767220231623,-650.37,0.00012122,2]
[400250604,1767220231633,-350.0,0.00012389,2]
[400250605,1767220231643,-650.37,0.0001254,2]
[400250606,1767220231653,-650.37,0.00012958,2]
[400250607,1767220231663,-650.37,0.00013376,2]
[400250608,1767220231673,-1000.0,0.00013699,2]
[400250609,1767220231682,-650.37,0.00013794,2]
[400250612,1767220231692,-998.13686081,0.00014,2]
[400250613,1767220231926,-168.94,0.00014201,2]
[400250614,1767220231951,-650.37,0.00014212,2]
[400250615,1767220231965,-650.37,0.0001463,2]
[400250616,1767220231976,-150.0,0.00014803,2]
[400250617,1767220231986,-200.0,0.00015006,2]
[400250618,1767220231997,-500.0,0.00015021,2]
[400250619,1767220232008,-650.37,0.00015048,2]
[400250620,1767220232019,-999.0,0.00015075,3]
[400250621,1767220232030,-150.00000001,0.00015288,2]
[400250622,1767220232041,-212.0,0.00015288,2]
[400250623,1767220232051,-1144.06,0.00015453,2]
[400250624,1767220232062,-650.37,0.00015466,2]
[400250625,1767220232072,-500.0,0.00015671,2]
[400250626,1767220232082,-650.37,0.00015884,2]
[400250627,1767220232092,-500.0,0.00015999,2]
[400250628,1767220232103,-500.0,0.00015999,2]
[400250629,1767220232113,-150.0,0.00015999,2]
[400250630,1767220232124,-500.0,0.00015999,2]
[400250631,1767220232134,-500.0,0.00015999,2]
[400250632,1767220232145,-500.0,0.00015999,2]
[400250633,1767220232157,-500.0,0.00015999,2]
[400250634,1767220232168,-11802.09272208,0.00016,2]
[400250636,1767220237487,-1346.99999996,0.00016,2]
[400250637,1767220237544,-6241.42048638,0.00016,2]
[400250638,1767220237554,-81817.93715941,0.00016,4]
[400250639,1767220237563,-309.39,0.00016116,2]
[400250640,1767220237574,-5000.0040363,0.000162,5]
[400250641,1767220237584,-160.51,0.0001637,2]
[400250642,1767220237593,-1710.9,0.00016438,2]
[400250643,1767220237603,-2892.85664926,0.00016438,2]
[400250644,1767220237617,-822.68449339,0.00016438,2]
[400250645,1767220237633,-1272.25830839,0.00016438,2]
[400250646,1767220237646,-4080.51495798,0.00016438,2]
[400250647,1767220239512,-1059.80161734,0.00016438,2]
[400250648,1767220239524,-1360.50397364,0.00016438,2]
[400250649,1767220239533,-1437.0115,0.00016583,2]
[400250650,1767220239543,-151.78744396,0.00016608,2]
[400250651,1767220239552,-1119.3870599,0.00016644,2]
[400250652,1767220239562,-162.2020409,0.0001666,2]
[400250653,1767220239572,-164.68,0.00016673,2]
[400250654,1767220239582,-164.68,0.00016673,2]
[400250655,1767220239591,-468.58096989,0.00016676,2]
[400250656,1767220239601,-1119.3870599,0.00016676,2]
[400250657,1767220239611,-831.0,0.0001668,2]
[400250658,1767220239621,-151.0,0.0001668,2]
[400250659,1767220239630,-151.0,0.0001668,2]
[400250660,1767220239639,-635.56376901,0.00016682,2]
[400250661,1767220239650,-168.82801909,0.00016682,2]
[400250662,1767220239660,-500.0,0.00016683,2]
[400250663,1767220239669,-500.0,0.00016683,2]
[400250664,1767220239679,-500.0,0.00016683,2]
[400250665,1767220239688,-500.0,0.00016683,2]
[400250666,1767220239698,-89785.11162127,0.00016683,2]
[400250667,1767220239710,-5288.5435198,0.00016683,2]
[400250668,1767220239721,-593.66452652,0.00016683,2]
[400250669,1767220239733,-949.309992,0.00016683,2]
[400250670,1767220239744,-332.13228803,0.00016683,2]
[400250671,1767220239755,-1427.5027801,0.00016683,2]
[400250672,1767220239767,-9997.50184597,0.00016683,2]
[400250673,1767220239778,-865.13590181,0.00016683,2]
[400250674,1767220239790,-6315.3454475,0.00016683,2]
[400250675,1767220239801,-3524.0199998,0.00016683,2]
[400250676,1767220239816,-324.19856534,0.00016683,2]
[400250700,1767220243442,-2011.75052409,0.00016683,2]
[400250701,1767220243467,-1043.40595115,0.00016683,2]
[400250702,1767220244480,-777.45991394,0.00016683,2]
[400250703,1767220244493,-5286.694357,0.00016683,2]
[400250704,1767220244541,-2474.29232095,0.00016683,2]
[400250705,1767220244552,-1118.4173,0.00016683,2]
[400250706,1767220244564,-26843.62044897,0.00016683,2]
[400250798,1767220245499,-2345.1357987,0.00016683,2]
[400250799,1767220245512,-517.97784,0.00016683,2]
[400250800,1767220245561,-1384.00984328,0.00016683,2]
[400250801,1767220245574,-8960.54578492,0.00016683,2]
[400250807,1767220245624,-475.3447729,0.00016683,2]
[400250809,1767220245635,-3907.25759322,0.00016683,2]
[400250811,1767220245646,-2165.5560001,0.00016683,2]
[400250813,1767220245658,-638.28905607,0.00016683,2]
[400250816,1767220245669,-569.93088227,0.00016683,2]
[400250830,1767220245740,-975.43176676,0.00016683,2]
[400250884,1767220261002,500.0,0.0004317,120]
[400250885,1767220385644,322.75521031,0.0004317,120]
[400250886,1767220385710,500.0,0.0004317,120]
[400250887,1767220386239,500.0,0.0004317,120]
[400250888,1767220386671,151.0,0.0004317,120]
[400250889,1767220386827,500.0,0.0004317,120]
[400250890,1767220387424,500.0,0.0004317,120]
[400250891,1767220387924,151.0,0.0004317,120]
[400250892,1767220388018,500.0,0.0004317,120]
[400250893,1767220388553,151.0,0.0004317,120]
[400250894,1767220388623,500.0,0.0004317,120]
[400250895,1767220389131,151.0,0.0004317,120]
[400250896,1767220389279,500.0,0.0004317,120]
[400250897,1767220389730,151.0,0.0004317,120]
[400250898,1767220389860,500.0,0.0004317,120]
[400250899,1767220390336,151.0,0.0004317,120]
[400250900,1767220390471,500.0,0.0004317,120]
[400250901,1767220390839,553.64373807,0.0004317,120]
[400250902,1767220391063,500.0,0.0004317,120]
[400250903,1767220391380,578.20924308,0.0004317,120]
[400250904,1767220391442,151.0,0.0004317,120]
[400250905,1767220391667,500.0,0.0004317,120]
[400250906,1767220392029,151.0,0.0004317,120]
[400250907,1767220392323,500.0,0.0004317,120]
[400250908,1767220392632,151.0,0.0004317,120]
[400250909,1767220392928,250.0,0.0004317,120]
[400250910,1767220393281,500.0,0.0004317,120]
[400250911,1767220393354,151.0,0.0004317,120]
[400250912,1767220393530,250.0,0.0004317,120]
[400250913,1767220393847,500.0,0.0004317,120]
[400250914,1767220394207,250.0,0.0004317,120]
[400250915,1767220394419,151.0,0.0004317,120]
[400250916,1767220394486,500.0,0.0004317,120]
[400250917,1767220394822,250.0,0.0004317,120]
[400250918,1767220395070,500.0,0.0004317,120]
[400250919,1767220395618,250.0,0.0004317,120]
[400250920,1767220395782,500.0,0.0004317,120]
[400250921,1767220396421,500.0,0.0004317,120]
[400250922,1767220397042,500.0,0.0004317,120]
[400250923,1767220397599,500.0,0.0004317,120]
[400250924,1767220397688,500.0,0.0004317,120]
[400250925,1767220398203,500.0,0.0004317,120]
[400250926,1767220398305,500.0,0.0004317,120]
[400250927,1767220398460,250.0,0.0004317,120]
[400250928,1767220398855,500.0,0.0004317,120]
[400250929,1767220399074,250.0,0.0004317,120]
[400250930,1767220399473,500.0,0.0004317,120]
[400250931,1767220399746,250.0,0.0004317,120]
[400250932,1767220400497,250.0,0.0004317,120]
[400250933,1767220401566,250.0,0.0004317,120]
[400250934,1767220402189,250.0,0.0004317,120]
[400250935,1767220402865,250.0,0.0004317,120]
[400250936,1767220403467,250.0,0.0004317,120]
[400250937,1767220404083,250.0,0.0004317,120]
[400250938,1767220404678,250.0,0.0004317,120]
[400250939,1767220405282,250.0,0.0004317,120]
[400250940,1767220405891,250.0,0.0004317,120]
[400250941,1767220445784,250.0,0.0004317,120]
[400250942,1767220445904,500.0,0.0004317,120]
[400250943,1767220446425,250.0,0.0004317,120]
[400250944,1767220446588,500.0,0.0004317,120]
[400250945,1767220447034,250.0,0.0004317,120]
[400250946,1767220447192,500.0,0.0004317,120]
[400250947,1767220447625,250.0,0.0004317,120]
[400250948,1767220448229,250.0,0.0004317,120]
[400250949,1767220448572,500.0,0.0004317,120]
[400250950,1767220448662,1000.0,0.0004317,120]
[400250951,1767220448816,250.0,0.0004317,120]
[400250952,1767220449167,500.0,0.0004317,120]
[400250953,1767220449262,1000.0,0.0004317,120]
[400250954,1767220449433,250.0,0.0004317,120]
[400250955,1767220449845,1000.0,0.0004317,120]
[400250956,1767220450024,250.0,0.0004317,120]
[400250957,1767220450478,1000.0,0.0004317,120]
[400250958,1767220450545,500.0,0.0004317,120]
[400250959,1767220450633,250.0,0.0004317,120]
[400250960,1767220451058,1000.0,0.0004317,120]
[400250961,1767220451126,500.0,0.0004317,120]
[400250962,1767220451230,250.0,0.0004317,120]
[400250963,1767220451675,1000.0,0.0004317,120]
[400250964,1767220451840,250.0,0.0004317,120]
[400250965,1767220451899,500.0,0.0004317,120]
[400250966,1767220452284,1000.0,0.0004317,120]
[400250967,1767220452449,250.0,0.0004317,120]
[400250968,1767220452526,500.0,0.0004317,120]
[400250969,1767220452736,500.0,0.0004317,120]
[400250970,1767220452897,1000.0,0.0004317,120]
[400250971,1767220453126,500.0,0.0004317,120]
[400250972,1767220453403,500.0,0.0004317,120]
[400250973,1767220453520,1000.0,0.0004317,120]
[400250974,1767220453767,500.0,0.0004317,120]
[400250975,1767220453991,500.0,0.0004317,120]
[400250976,1767220454139,1000.0,0.0004317,120]
[400250977,1767220454495,500.0,0.0004317,120]
[400250978,1767220454606,500.0,0.0004317,120]
[400250979,1767220454753,1000.0,0.0004317,120]
[400250980,1767220454980,500.0,0.0004317,120]
[400250981,1767220455376,1000.0,0.0004317,120]
[400250982,1767220455584,500.0,0.0004317,120]
[400250983,1767220458698,151.0,0.0004317,120]
[400250984,1767220459070,151.0,0.0004317,120]
[400250986,1767220508085,331.59773469,0.0004317,120]
[400250987,1767220508146,151.0,0.0004317,120]
[400250988,1767220512854,414.0,0.0004317,120]
[400250989,1767220514448,394.46532357,0.0004317,120]
[400250990,1767220562305,500.0,0.0004317,120]
[400250991,1767220565727,160.12855637,0.0004317,120]
[400250992,1767220625268,500.0,0.0004317,120]
[400250993,1767220627577,620.0,0.0004317,120]
[400250994,1767220627650,1500.0,0.0004317,120]
[400250995,1767220632826,200.0,0.0004317,120]
[400250996,1767220632981,200.0,0.0004317,120]
[400250997,1767220633489,200.0,0.0004317,120]
[400250998,1767220635317,400.0,0.0004317,120]
[400250999,1767220642207,5999.99999901,0.0004317,30]
[400251000,1767220736228,3650.0770457,0.0003,120]
[400251001,1767220834862,151.0,0.00043178,50]
[400251002,1767220862280,500.0,0.00043178,120]
[400251003,1767221015942,1000.00000001,0.00043188,30]
[400251006,1767221160847,500.0,0.00043188,120]
[400251141,1767221431591,-166.66,0.00013766,2]
[400251142,1767221431602,-129.74886238,0.00013766,2]
[400251143,1767221431614,-65.25113762,0.00013766,2]
[400251144,1767221431624,-263.0,0.00013766,2]
[400251145,1767221431634,-600.0,0.00013766,2]
[400251146,1767221431645,-195.0,0.00013767,2]
[400251147,1767221431655,-226.37851077,0.00013767,2]
[400251148,1767221431667,-73.62148923,0.00013767,2]
[400251149,1767221431677,-600.0,0.00013768,2]
[400251150,1767221431686,-600.0,0.00013768,2]
[400251151,1767221431695,-600.0,0.00013768,2]
[400251152,1767221431705,-195.0,0.00013769,2]
[400251153,1767221431714,-300.0,0.00013772,2]
[400251154,1767221431724,-300.0,0.00013773,2]
[400251155,1767221431733,-300.0,0.00013773,2]
[400251156,1767221431743,-300.0,0.00013773,2]
[400251157,1767221431756,-500.0,0.00013858,2]
[400251158,1767221431765,-166.66,0.00014056,2]
[400251159,1767221431774,-166.66,0.00014345,2]
[400251160,1767221431785,-798.28644827,0.00014447,2]
[400251163,1767221431797,-497.55228091,0.00014447,2]
[400251165,1767221431809,-540.75149923,0.00014447,2]
[400251166,1767221431819,-1000.0,0.00014578,2]
[400251167,1767221431828,-200.0,0.00014588,2]
[400251168,1767221431838,-166.66,0.00014635,2]
[400251170,1767221431848,-969.83,0.00014816,2]
[400251171,1767221431857,-330.45850076,0.00014891,2]
[400251173,1767221431869,-122.54149924,0.00014891,2]
[400251174,1767221431879,-166.66,0.00014925,2]
[400251175,1767221431889,-181.0,0.00015092,2]
[400251176,1767221431899,-136.28563609,0.0001514,2]
[400251178,1767221431911,-163.71436391,0.0001514,2]
[400251180,1767221431920,-500.0,0.0001514,2]
[400251181,1767221431929,-500.0,0.0001514,2]
[400251183,1767221431939,-500.0,0.0001514,2]
[400251185,1767221431949,-412.06307242,0.0001514,2]
[400251186,1767221431961,-87.93692758,0.0001514,2]
[400251187,1767221431971,-500.0,0.0001514,2]
[400251188,1767221431981,-500.0,0.0001514,2]
[400251189,1767221431991,-344.56165269,0.0001514,2]
[400251190,1767221432006,-155.43834731,0.0001514,2]
[400251191,1767221432015,-500.0,0.0001514,2]
[400251192,1767221432025,-500.0,0.0001514,2]
[400251193,1767221432035,-414.36476086,0.0001514,2]
[400251194,1767221432045,-500.0,0.0001514,2]
[400251195,1767221432055,-500.0,0.0001514,2]
[400251196,1767221432064,-500.0,0.0001514,2]
[400251197,1767221432074,-500.0,0.0001514,2]
[400251198,1767221432084,-500.0,0.0001514,2]
[400251199,1767221432094,-500.0,0.0001514,2]
[400251200,1767221432104,-500.0,0.0001514,2]
[400251201,1767221432114,-500.0,0.0001514,2]
[400251202,1767221432135,-500.0,0.0001514,2]
[400251203,1767221432148,-500.0,0.0001514,2]
[400251204,1767221432158,-500.0,0.0001514,2]
[400251205,1767221432168,-500.0,0.0001514,2]
[400251206,1767221432179,-500.0,0.0001514,2]
[400251207,1767221432190,-500.0,0.0001514,2]
[400251208,1767221432200,-437.68,0.00015141,2]
[400251209,1767221432210,-347.75704666,0.00015142,2]
[400251210,1767221432221,-300.0,0.00015142,2]
[400251211,1767221432231,-2500.0,0.00015142,2]
[400251212,1767221432241,-195.0,0.00015142,2]
[400251213,1767221432251,-600.0,0.00015142,2]
[400251214,1767221432261,-2500.0,0.00015142,2]
[400251215,1767221432272,-195.0,0.00015142,2]
[400251216,1767221432281,-1607.67242038,0.00015142,2]
[400251217,1767221432292,-500.0,0.00015142,2]
[400251218,1767221432302,-166.66,0.00015215,2]
[400251219,1767221432313,-3191.20233974,0.00015276,2]
[400251220,1767221432324,-226.73245437,0.00015288,2]
[400251221,1767221432334,-150.0,0.00015288,2]
[400251222,1767221432344,-150.0,0.00015288,2]
[400251223,1767221432355,-150.0,0.00015288,2]
[400251224,1767221432365,-196.28780998,0.00015288,2]
[400251225,1767221432375,-150.0,0.00015288,2]
[400251226,1767221432385,-150.0,0.00015288,2]
[400251227,1767221432395,-150.0,0.00015288,2]
[400251228,1767221432405,-150.0,0.00015323,2]
[400251229,1767221432415,-150.0,0.00015348,2]
[400251230,1767221432426,-150.0,0.00015356,2]
[400251231,1767221432436,-150.0,0.00015358,2]
[400251232,1767221432447,-150.0,0.00015394,2]
[400251233,1767221432457,-150.0,0.00015394,2]
[400251234,1767221432467,-150.0,0.00015409,2]
[400251235,1767221432477,-437.68,0.00015415,2]
[400251236,1767221432493,-500.0,0.00015416,2]
[400251237,1767221432504,-150.0,0.00015424,2]
[400251238,1767221432514,-150.0,0.00015429,2]
[400251239,1767221432525,-200.0,0.00015439,2]
[400251240,1767221432537,-207.4,0.00015439,2]
[400251241,1767221432547,-215.0738,0.00015439,2]
[400251242,1767221432557,-223.0315306,0.00015439,2]
[400251243,1767221432567,-231.28369723,0.00015439,2]
[400251244,1767221432577,-239.84119403,0.00015439,2]
[400251245,1767221432587,-248.71531821,0.00015439,2]
[400251246,1767221432599,-257.91778498,0.00015439,2]
[400251247,1767221432610,-267.46074303,0.00015439,2]
[400251248,1767221432620,-150.0,0.00015465,2]
[400251249,1767221432631,-150.0,0.0001547,2]
[400251250,1767221432642,-150.0,0.00015492,2]
[400251251,1767221432652,-150.0,0.000155,2]
[400251252,1767221432662,-150.0,0.000155,2]
[400251253,1767221432672,-150.0,0.000155,2]
[400251254,1767221432683,-150.0,0.0001553,2]
[400251255,1767221432693,-150.0,0.00015535,2]
[400251256,1767221432704,-150.0,0.00015559,2]
[400251257,1767221432715,-150.0,0.00015571,2]
[400251258,1767221432726,-150.0,0.00015591,2]
[400251259,1767221432736,-150.0,0.00015606,2]
[400251260,1767221432746,-150.0,0.00015606,2]
[400251261,1767221432757,-150.0,0.00015627,2]
[400251262,1767221432767,-150.0,0.00015642,2]
[400251263,1767221432778,-150.0,0.00015652,2]
[400251264,1767221432789,-150.0,0.00015677,2]
[400251265,1767221432799,-437.68,0.00015688,2]
[400251266,1767221432809,-150.0,0.00015695,2]
[400251267,1767221432820,-150.0,0.00015712,2]
[400251268,1767221432830,-150.0,0.00015712,2]
[400251269,1767221432840,-150.0,0.00015712,2]
[400251270,1767221432856,-150.0,0.00015712,2]
[400251271,1767221432867,-150.0,0.00015748,2]
[400251272,1767221432877,-150.0,0.00015763,2]
[400251273,1767221432888,-150.0,0.00015773,2]
[400251274,1767221432898,-465.64,0.00015778,2]
[400251275,1767221432909,-150.0,0.00015783,2]
[400251276,1767221432919,-3717.55112027,0.0001579,2]
[400251277,1767221432930,-2584.6822,0.000158,2]
[400251278,1767221432940,-2500.0,0.000158,2]
[400251279,1767221432951,-158.71,0.00015813,2]
[400251280,1767221432962,-150.0,0.00015818,2]
[400251281,1767221432971,-150.0,0.00015818,2]
[400251282,1767221432982,-895.50964793,0.00015825,2]
[400251283,1767221432992,-5662.46052253,0.00015825,2]
[400251284,1767221433002,-150.93114479,0.00015831,2]
[400251285,1767221433012,-150.0,0.00015831,2]
[400251286,1767221433023,-150.0,0.00015834,2]
[400251287,1767221433033,-150.0,0.00015854,2]
[400251288,1767221433044,-150.0,0.00015889,2]
[400251289,1767221433055,-150.0,0.00015894,2]
[400251290,1767221433066,-444.89463831,0.00015899,2]
[400251291,1767221433076,-150.0,0.00015899,2]
[400251292,1767221433086,-150.0,0.00015925,2]
[400251293,1767221433096,-150.0,0.00015925,2]
[400251294,1767221433105,-150.0,0.00015925,2]
[400251295,1767221433116,-895.50964792,0.00015944,2]
[400251296,1767221433127,-5662.46052249,0.00015944,2]
[400251297,1767221433137,-150.0,0.00015955,2]
[400251298,1767221433148,-150.0,0.0001596,2]
[400251299,1767221433158,-437.68,0.00015962,2]
[400251300,1767221433168,-150.0,0.00015967,2]
[400251301,1767221433179,-150.0,0.00015995,2]
[400251302,1767221433190,-168.0,0.0001601,2]
[400251303,1767221433200,-150.0,0.00016016,2]
[400251304,1767221433214,-150.0,0.00016031,2]
[400251305,1767221433225,-150.0,0.00016031,2]
[400251306,1767221433236,-150.0,0.00016035,2]
[400251307,1767221433247,-895.50964792,0.00016064,2]
[400251308,1767221433257,-5662.46052249,0.00016064,2]
[400251309,1767221433269,-150.0,0.00016066,2]
[400251310,1767221433280,-150.0,0.00016076,2]
[400251311,1767221433290,-150.0,0.00016102,2]
[400251312,1767221433300,-150.0,0.00016103,2]